fUST/lending_fUST_20260304
["ID","MTS","AMOUNT","RATE_DAILY","PERIOD"]
[407600762,1772565039877,-1922.31,0.00010958,2]
[407600763,1772565039891,-500.0,0.00010958,2]
[407600764,1772565039902,-625.28,0.00010958,2]
[407600765,1772565039912,-500.0,0.00010958,2]
[407600766,1772565039921,-500.0,0.00010958,2]
[407600767,1772565039931,-508.99,0.00010958,2]
[407600768,1772565039940,-500.0,0.00010958,2]
[407600769,1772565039949,-500.0,0.00010958,2]
[407600770,1772565039959,-500.0,0.00010958,2]
[407600771,1772565039971,-500.0,0.00010958,2]
[407600773,1772565039980,-500.0,0.00010958,2]
[407600774,1772565039990,-1030.0,0.00010958,2]
[407600775,1772565039999,-1225.24,0.00010958,2]
[407600776,1772565040010,-500.0,0.00010958,2]
[407600777,1772565040020,-500.0,0.00010958,2]
[407600778,1772565040030,-500.0,0.00010958,2]
[407600779,1772565040040,-500.0,0.00010958,2]
[407600780,1772565040050,-500.0,0.00010958,2]
[407600781,1772565040060,-500.0,0.00010958,2]
[407600782,1772565040070,-500.0,0.00010958,2]
[407600783,1772565040080,-500.0,0.00010958,2]
[407600784,1772565040091,-500.0,0.00010958,2]
[407600785,1772565040102,-500.0,0.00010958,2]
[407600786,1772565040112,-500.0,0.00010958,2]
[407600787,1772565040123,-500.0,0.00010958,2]
[407600788,1772565040132,-500.0,0.00010958,2]
[407600790,1772565040144,-1563.78,0.00010958,2]
[407600792,1772565040154,-981.02,0.00010958,2]
[407600794,1772565040164,-500.0,0.00010958,2]
[407600796,1772565040174,-500.0,0.00010958,2]
[407600798,1772565040184,-500.0,0.00010958,2]
[407600800,1772565040194,-500.0,0.00010958,2]
[407600802,1772565040204,-500.0,0.00010958,2]
[407600804,1772565040214,-1190.31,0.00010958,2]
[407600806,1772565040224,-587.17,0.00010958,2]
[407600808,1772565040233,-162.01882178,0.00010958,2]
[407600809,1772565040242,-500.0,0.00010958,2]
[407600811,1772565040252,-500.0,0.00010958,2]
[407600813,1772565040261,-500.0,0.00010958,2]
[407600815,1772565040270,-500.0,0.00010958,2]
[407600817,1772565040279,-500.0,0.00010958,2]
[407600819,1772565040290,-669.42,0.00010958,2]
[407600821,1772565040300,-500.0,0.00010958,2]
[407600823,1772565040309,-619.35,0.00010958,2]
[407600825,1772565040323,-732.69,0.00010958,2]
[407600827,1772565040333,-500.0,0.00010958,2]
[407600829,1772565040343,-500.0,0.00010958,2]
[407600831,1772565040352,-780.91,0.00010958,2]
[407600833,1772565040363,-3211.49,0.00010958,2]
[407600835,1772565040372,-500.0,0.00010958,2]
[407600838,1772565040382,-538.37,0.00010958,2]
[407600839,1772565040394,-500.0,0.00010958,2]
[407600842,1772565040405,-500.0,0.00010958,2]
[407600843,1772565040415,-500.0,0.00010958,2]
[407600845,1772565040425,-518.37,0.00010958,2]
[407600848,1772565040435,-500.0,0.00010958,2]
[407600849,1772565040444,-500.0,0.00010958,2]
[407600851,1772565040454,-500.0,0.00010958,2]
[407600853,1772565040463,-500.0,0.00010958,2]
[407600855,1772565040472,-500.0,0.00010958,2]
[407600857,1772565040482,-1982.67,0.00010958,2]
[407600859,1772565040492,-1008.92,0.00010958,2]
[407600861,1772565040503,-1018.62,0.00010958,2]
[407600863,1772565040513,-500.0,0.00010958,2]
[407600865,1772565040522,-500.0,0.00010958,2]
[407600867,1772565040531,-500.0,0.00010958,2]
[407600869,1772565040541,-500.0,0.00010958,2]
[407600871,1772565040551,-1477.93,0.00010958,2]
[407600873,1772565040561,-500.0,0.00010958,2]
[407600875,1772565040571,-860.08,0.00010958,2]
[407600877,1772565040580,-530.17,0.00010958,2]
[407600879,1772565040591,-663.59,0.00010958,2]
[407600882,1772565040601,-500.0,0.00010958,2]
[407600884,1772565040612,-500.0,0.00010958,2]
[407600886,1772565040622,-500.0,0.00010958,2]
[407600887,1772565040632,-500.0,0.00010958,2]
[407600889,1772565040642,-1414.22,0.00010958,2]
[407600891,1772565040652,-500.0,0.00010958,2]
[407600893,1772565040662,-500.0,0.00010958,2]
[407600895,1772565040672,-500.0,0.00010958,2]
[407600897,1772565040683,-830.74,0.00010958,2]
[407600900,1772565040695,-478.74085099,0.00010958,2]
[407600902,1772565040706,-3023.96,0.00010958,2]
[407600904,1772565040715,-500.0,0.00010958,2]
[407600906,1772565040725,-518.33,0.00010958,2]
[407600908,1772565040735,-500.0,0.00010958,2]
[407600910,1772565040744,-500.0,0.00010958,2]
[407600912,1772565040754,-2168.2,0.00010958,2]
[407600914,1772565040763,-654.83,0.00010958,2]
[407600916,1772565040772,-500.0,0.00010958,2]
[407600918,1772565040782,-1919.58,0.00010958,2]
[407600920,1772565040791,-500.0,0.00010958,2]
[407600922,1772565040800,-809.36,0.00010958,2]
[407600924,1772565040809,-500.0,0.00010958,2]
[407600926,1772565040819,-945.88,0.00010958,2]
[407600928,1772565040828,-500.0,0.00010958,2]
[407600930,1772565040838,-503.62098526,0.00010958,2]
[407600932,1772565040848,-500.0,0.00010958,2]
[407600934,1772565040857,-7392.55,0.00010958,2]
[407600936,1772565040866,-500.0,0.00010958,2]
[407600938,1772565040876,-500.0,0.00010958,2]
[407600940,1772565040885,-500.0,0.00010958,2]
[407600942,1772565040896,-500.0,0.00010958,2]
[407600944,1772565040906,-500.0,0.00010958,2]
[407600946,1772565040916,-500.0,0.00010958,2]
[407600947,1772565040926,-500.0,0.00010958,2]
[407600949,1772565040936,-500.0,0.00010958,2]
[407600951,1772565040945,-500.0,0.00010958,2]
[407600953,1772565040955,-6732.49,0.00010958,2]
[407600955,1772565040964,-500.0,0.00010958,2]
[407600957,1772565040973,-500.0,0.00010958,2]
[407600959,1772565040982,-6595.17,0.00010958,2]
[407600961,1772565040991,-500.0,0.00010958,2]
[407600963,1772565041000,-1163.48,0.00010958,2]
[407600965,1772565041010,-500.0,0.00010958,2]
[407600967,1772565041019,-536.79,0.00010958,2]
[407600969,1772565041029,-500.0,0.00010958,2]
[407600971,1772565041038,-500.0,0.00010958,2]
[407600973,1772565041047,-500.0,0.00010958,2]
[407600975,1772565041057,-612.03,0.00010958,2]
[407600977,1772565041066,-500.0,0.00010958,2]
[407600979,1772565041076,-904.72,0.00010958,2]
[407600981,1772565041086,-2111.31,0.00010958,2]
[407600983,1772565041096,-500.0,0.00010958,2]
[407600985,1772565041106,-500.0,0.00010958,2]
[407600987,1772565041115,-500.0,0.00010958,2]
[407600989,1772565041126,-500.0,0.00010958,2]
[407600991,1772565041136,-500.0,0.00010958,2]
[407600993,1772565041146,-500.0,0.00010958,2]
[407600995,1772565041155,-1523.03,0.00010958,2]
[407600997,1772565041165,-500.0,0.00010958,2]
[407600999,1772565041175,-500.0,0.00010958,2]
[407601001,1772565041184,-1133.91,0.00010958,2]
[407601003,1772565041194,-786.72,0.00010958,2]
[407601005,1772565041203,-500.0,0.00010958,2]
[407601007,1772565041213,-2613.94,0.00010958,2]
[407601009,1772565041223,-3056.98,0.00010958,2]
[407601011,1772565041232,-5123.49,0.00010958,2]
[407601013,1772565041242,-1025.76,0.00010958,2]
[407601015,1772565041250,-500.0,0.00010958,2]
[407601017,1772565041259,-500.0,0.00010958,2]
[407601019,1772565041269,-500.0,0.00010958,2]
[407601021,1772565041279,-2575.85,0.00010958,2]
[407601049,1772565041541,-500.0,0.00010958,2]
[407601051,1772565041551,-500.0,0.00010958,2]
[407601053,1772565041562,-500.0,0.00010958,2]
[407601055,1772565041572,-500.0,0.00010958,2]
[407601057,1772565041581,-500.0,0.00010958,2]
[407601059,1772565041591,-1099.05,0.00010958,2]
[407601062,1772565041601,-500.0,0.00010958,2]
[407601064,1772565041612,-1374.87,0.00010958,2]
[407601066,1772565041628,-577.73007531,0.00010958,2]
[407601068,1772565041639,-509.83,0.00010958,2]
[407601070,1772565041649,-865.02,0.00010958,2]
[407601072,1772565041659,-841.59,0.00010958,2]
[407601074,1772565041669,-500.0,0.00010958,2]
[407601076,1772565041679,-655.72,0.00010958,2]
[407601078,1772565041689,-500.0,0.00010958,2]
[407601080,1772565041698,-1929.9,0.00010958,2]
[407601082,1772565041708,-617.71,0.00010958,2]
[407601084,1772565041717,-500.0,0.00010958,2]
[407601086,1772565041727,-614.72518964,0.00010958,2]
[407601088,1772565041736,-1944.56,0.00010958,2]
[407601090,1772565041746,-500.0,0.00010958,2]
[407601092,1772565041755,-1157.14,0.00010958,2]
[407601094,1772565041765,-500.0,0.00010958,2]
[407601095,1772565041775,-500.0,0.00010958,2]
[407601096,1772565041785,-1757.98,0.00010958,2]
[407601097,1772565041795,-500.0,0.00010958,2]
[407601098,1772565041805,-642.32,0.00010958,2]
[407601100,1772565041814,-1759.2,0.00010958,2]
[407601101,1772565041823,-500.0,0.00010958,2]
[407601103,1772565041833,-500.0,0.00010958,2]
[407601105,1772565041843,-500.0,0.00010958,2]
[407601107,1772565041852,-574.92,0.00010958,2]
[407601109,1772565041861,-500.0,0.00010958,2]
[407601111,1772565041870,-1977.73,0.00010958,2]
[407601112,1772565041879,-500.0,0.00010958,2]
[407601113,1772565041889,-500.0,0.00010958,2]
[407601114,1772565041898,-500.0,0.00010958,2]
[407601115,1772565041907,-500.0,0.00010958,2]
[407601116,1772565041916,-1421.84,0.00010958,2]
[407601117,1772565041926,-1012.54,0.00010958,2]
[407601118,1772565041935,-500.0,0.00010958,2]
[407601119,1772565041944,-500.0,0.00010958,2]
[407601120,1772565041953,-1466.09,0.00010958,2]
[407601121,1772565041962,-1818.25,0.00010958,2]
[407601122,1772565041971,-1676.73,0.00010958,2]
[407601123,1772565041981,-500.0,0.00010958,2]
[407601124,1772565041990,-662.51,0.00010958,2]
[407601125,1772565041999,-1664.54,0.00010958,2]
[407601126,1772565042008,-500.0,0.00010958,2]
[407601127,1772565042018,-1457.54,0.00010958,2]
[407601128,1772565042027,-500.0,0.00010958,2]
[407601129,1772565042036,-292.86638895,0.00010958,2]
[407601130,1772565042045,-500.0,0.00010958,2]
[407601131,1772565042055,-500.0,0.00010958,2]
[407601132,1772565042064,-1447.18,0.00010958,2]
[407601134,1772565042074,-500.0,0.00010958,2]
[407601136,1772565042085,-505.48,0.00010958,2]
[407601138,1772565042095,-848.86,0.00010958,2]
[407601140,1772565042104,-500.0,0.00010958,2]
[407601142,1772565042114,-545.9,0.00010958,2]
[407601144,1772565042123,-515.17,0.00010958,2]
[407601146,1772565042134,-556.89,0.00010958,2]
[407601148,1772565042145,-500.0,0.00010958,2]
[407601151,1772565042155,-500.0,0.00010958,2]
[407601153,1772565042165,-500.0,0.00010958,2]
[407601155,1772565042175,-500.0,0.00010958,2]
[407601157,1772565042184,-500.0,0.00010958,2]
[407601158,1772565042194,-2108.14,0.00010958,2]
[407601161,1772565042204,-500.0,0.00010958,2]
[407601163,1772565042214,-501.11658367,0.00010958,2]
[407601165,1772565042223,-500.0,0.00010958,2]
[407601167,1772565042233,-500.0,0.00010958,2]
[407601169,1772565042243,-500.0,0.00010958,2]
[407601171,1772565042252,-1496.16,0.00010958,2]
[407601173,1772565042262,-500.0,0.00010958,2]
[407601175,1772565042272,-718.25,0.00010958,2]
[407601177,1772565042281,-500.0,0.00010958,2]
[407601179,1772565042292,-500.0,0.00010958,2]
[407601181,1772565042301,-387.35532298,0.00010958,2]
[407601183,1772565042310,-659.4,0.00010958,2]
[407601185,1772565042321,-500.0,0.00010958,2]
[407601187,1772565042334,-500.0,0.00010958,2]
[407601189,1772565042344,-500.0,0.00010958,2]
[407601191,1772565042356,-4293.61,0.00010958,2]
[407601193,1772565042366,-500.0,0.00010958,2]
[407601195,1772565042375,-500.0,0.00010958,2]
[407601197,1772565042386,-799.08,0.00010958,2]
[407601199,1772565042398,-500.0,0.00010958,2]
[407601201,1772565042408,-500.0,0.00010958,2]
[407601203,1772565042418,-533.78,0.00010958,2]
[407601205,1772565042427,-2891.78,0.00010958,2]
[407601207,1772565042436,-1578.29,0.00010958,2]
[407601209,1772565042446,-500.0,0.00010958,2]
[407601211,1772565042456,-619.27,0.00010958,2]
[407601213,1772565042467,-500.0,0.00010958,2]
[407601215,1772565042476,-3509.68,0.00010958,2]
[407601217,1772565042486,-500.0,0.00010958,2]
[407601219,1772565042496,-826.84,0.00010958,2]
[407601221,1772565042505,-500.0,0.00010958,2]
[407601223,1772565042514,-500.0,0.00010958,2]
[407601225,1772565042524,-715.4,0.00010958,2]
[407601227,1772565042533,-500.0,0.00010958,2]
[407601229,1772565042543,-500.0,0.00010958,2]
[407601231,1772565042552,-500.0,0.00010958,2]
[407601233,1772565042562,-500.0,0.00010958,2]
[407601235,1772565042572,-555.91,0.00010958,2]
[407601237,1772565042582,-500.0,0.00010958,2]
[407601239,1772565042591,-305.09154423,0.00010958,2]
[407601241,1772565042601,-500.0,0.00010958,2]
[407601243,1772565042610,-3235.46,0.00010958,2]
[407601245,1772565042620,-752.45,0.00010958,2]
[407601247,1772565042631,-500.0,0.00010958,2]
[407601249,1772565042642,-1129.27,0.00010958,2]
[407601251,1772565042652,-500.0,0.00010958,2]
[407601253,1772565042663,-500.0,0.00010958,2]
[407601255,1772565042673,-500.0,0.00010958,2]
[407601257,1772565042683,-500.0,0.00010958,2]
[407601259,1772565042693,-500.0,0.00010958,2]
[407601261,1772565042703,-794.56,0.00010958,2]
[407601263,1772565042714,-506.88,0.00010958,2]
[407601266,1772565042723,-500.0,0.00010958,2]
[407601268,1772565042733,-500.0,0.00010958,2]
[407601270,1772565042742,-728.99,0.00010958,2]
[407601272,1772565042751,-809.7,0.00010958,2]
[407601274,1772565042761,-500.0,0.00010958,2]
[407601276,1772565042770,-500.0,0.00010958,2]
[407601278,1772565042779,-599.2,0.00010958,2]
[407601280,1772565042789,-500.0,0.00010958,2]
[407601282,1772565042798,-6580.63,0.00010958,2]
[407601284,1772565042808,-500.0,0.00010958,2]
[407601286,1772565042818,-500.0,0.00010958,2]
[407601289,1772565042827,-500.0,0.00010958,2]
[407601291,1772565042837,-500.0,0.00010958,2]
[407601293,1772565042846,-500.0,0.00010958,2]
[407601295,1772565042856,-1287.28,0.00010958,2]
[407601297,1772565042865,-500.0,0.00010958,2]
[407601298,1772565042875,-1272.63,0.00010958,2]
[407601300,1772565042884,-637.04,0.00010958,2]
[407601302,1772565042895,-1234.74,0.00010958,2]
[407601305,1772565042904,-500.0,0.00010958,2]
[407601307,1772565042914,-547.01,0.00010958,2]
[407601310,1772565042924,-500.0,0.00010958,2]
[407601314,1772565042944,-4212.18,0.00010958,2]
[407601318,1772565042957,-500.0,0.00010958,2]
[407601320,1772565042966,-500.0,0.00010958,2]
[407601321,1772565042976,-663.95,0.00010958,2]
[407601323,1772565042987,-579.83,0.00010958,2]
[407601325,1772565042997,-500.0,0.00010958,2]
[407601326,1772565043007,-764.38,0.00010958,2]
[407601327,1772565043018,-984.56,0.00010958,2]
[407601328,1772565043028,-1047.89,0.00010958,2]
[407601329,1772565043039,-1732.21,0.00010958,2]
[407601330,1772565043050,-720.21,0.00010958,2]
[407601332,1772565043060,-523.58,0.00010958,2]
[407601333,1772565043070,-1441.56,0.00010958,2]
[407601334,1772565043080,-500.0,0.00010958,2]
[407601335,1772565043090,-500.0,0.00010958,2]
[407601336,1772565043100,-500.0,0.00010958,2]
[407601337,1772565043110,-500.0,0.00010958,2]
[407601338,1772565043120,-500.0,0.00010958,2]
[407601339,1772565043130,-500.0,0.00010958,2]
[407601340,1772565043142,-601.26,0.00010958,2]
[407601341,1772565043152,-500.0,0.00010958,2]
[407601342,1772565043163,-670.08,0.00010958,2]
[407601343,1772565043174,-912.3,0.00010958,2]
[407601344,1772565043184,-2110.66,0.00010958,2]
[407601345,1772565043195,-1006.24,0.00010958,2]
[407601346,1772565043205,-570.7155162,0.00010958,2]
[407601347,1772565043215,-500.0,0.00010958,2]
[407601348,1772565043226,-690.71,0.00010958,2]
[407601349,1772565043237,-316.98096114,0.00010958,2]
[407601350,1772565043247,-556.91,0.00010958,2]
[407601351,1772565043258,-937.09,0.00010958,2]
[407601352,1772565043268,-500.0,0.00010958,2]
[407601353,1772565043278,-1384.06,0.00010958,2]
[407601354,1772565043288,-1161.78,0.00010958,2]
[407601355,1772565043298,-856.34,0.00010958,2]
[407601356,1772565043308,-500.0,0.00010958,2]
[407601357,1772565043320,-500.0,0.00010958,2]
[407601358,1772565043333,-533.68,0.00010958,2]
[407601360,1772565043344,-500.0,0.00010958,2]
[407601361,1772565043354,-1640.12,0.00010958,2]
[407601363,1772565043366,-561.25864091,0.00010958,2]
[407601364,1772565043375,-500.0,0.00010958,2]
[407601365,1772565043388,-1220.57,0.00010958,2]
[407601366,1772565043401,-500.0,0.00010958,2]
[407601367,1772565043411,-265.7316326,0.00010958,2]
[407601368,1772565043421,-636.19,0.00010958,2]
[407601369,1772565043430,-1524.5,0.00010958,2]
[407601370,1772565043446,-579.03,0.00010958,2]
[407601371,1772565043456,-500.0,0.00010958,2]
[407601372,1772565043466,-1936.65,0.00010958,2]
[407601373,1772565043476,-886.02,0.00010958,2]
[407601374,1772565043486,-1616.32,0.00010958,2]
[407601375,1772565043496,-1540.64,0.00010958,2]
[407601376,1772565043506,-500.0,0.00010958,2]
[407601377,1772565043516,-2221.41,0.00010958,2]
[407601378,1772565043527,-500.0,0.00010958,2]
[407601379,1772565043538,-845.07,0.00010958,2]
[407601380,1772565043548,-756.84,0.00010958,2]
[407601381,1772565043558,-280.57046294,0.00010958,2]
[407601382,1772565043568,-500.0,0.00010958,2]
[407601383,1772565043578,-500.0,0.00010958,2]
[407601384,1772565043588,-500.0,0.00010958,2]
[407601385,1772565043598,-1259.2,0.00010958,2]
[407601386,1772565043608,-500.0,0.00010958,2]
[407601387,1772565043619,-1079.64,0.00010958,2]
[407601388,1772565043633,-635.78,0.00010958,2]
[407601389,1772565043652,-500.0,0.00010958,2]
[407601390,1772565043663,-500.0,0.00010958,2]
[407601391,1772565043674,-500.0,0.00010958,2]
[407601392,1772565043684,-172.0980165,0.00010958,2]
[407601393,1772565043694,-500.0,0.00010958,2]
[407601394,1772565043705,-500.0,0.00010958,2]
[407601395,1772565043715,-2050.01,0.00010958,2]
[407601396,1772565043725,-8109.34,0.00010958,2]
[407601397,1772565043735,-17554.55228988,0.00010958,2]
[407601398,1772565044412,-5977.84996257,0.00010958,2]
[407601399,1772565044433,-2448.85971983,0.00010958,2]
[407601400,1772565044443,-1118.57,0.00010958,2]
[407601401,1772565044452,-500.0,0.00010958,2]
[407601402,1772565044462,-2032.18,0.00010958,2]
[407601403,1772565044471,-500.0,0.00010958,2]
[407601404,1772565044481,-500.0,0.00010958,2]
[407601405,1772565044490,-500.0,0.00010958,2]
[407601406,1772565044499,-1110.32,0.00010958,2]
[407601407,1772565044509,-500.0,0.00010958,2]
[407601408,1772565044518,-1080.33,0.00010958,2]
[407601409,1772565044528,-500.0,0.00010958,2]
[407601410,1772565044537,-500.0,0.00010958,2]
[407601411,1772565044547,-500.0,0.00010958,2]
[407601412,1772565044556,-500.0,0.00010958,2]
[407601413,1772565044565,-500.0,0.00010958,2]
[407601414,1772565044575,-1792.7,0.00010958,2]
[407601415,1772565044584,-1583.15,0.00010958,2]
[407601416,1772565044594,-500.0,0.00010958,2]
[407601417,1772565044603,-500.0,0.00010958,2]
[407601418,1772565044614,-500.0,0.00010958,2]
[407601419,1772565044624,-10628.28,0.00010958,2]
[407601420,1772565044633,-10090.75,0.00010958,2]
[407601421,1772565044642,-500.0,0.00010958,2]
[407601422,1772565044652,-500.0,0.00010958,2]
[407601423,1772565044661,-500.0,0.00010958,2]
[407601424,1772565044671,-500.0,0.00010958,2]
[407601425,1772565044679,-1409.72,0.00010958,2]
[407601426,1772565044687,-2088.0,0.00010958,2]
[407601427,1772565044696,-1115.69,0.00010958,2]
[407601428,1772565044706,-500.0,0.00010958,2]
[407601429,1772565044716,-1103.38,0.00010958,2]
[407601430,1772565044725,-4010.38,0.00010958,2]
[407601431,1772565044734,-598.95,0.00010958,2]
[407601432,1772565044744,-4434.4,0.00010958,2]
[407601433,1772565044754,-500.0,0.00010958,2]
[407601434,1772565044775,-1334.84,0.00010958,2]
[407601435,1772565044785,-500.0,0.00010958,2]
[407601436,1772565044795,-500.0,0.00010958,2]
[407601437,1772565044804,-500.0,0.00010958,2]
[407601438,1772565044814,-500.0,0.00010958,2]
[407601439,1772565044822,-8662.91,0.00010958,2]
[407601440,1772565044830,-363.24358466,0.00010958,2]
[407601441,1772565044838,-538.0,0.00010958,2]
[407601442,1772565044847,-521.36,0.00010958,2]
[407601443,1772565044855,-500.0,0.00010958,2]
[407601444,1772565044863,-1805.69,0.00010958,2]
[407601445,1772565044872,-500.0,0.00010958,2]
[407601446,1772565044882,-1624.55,0.00010958,2]
[407601447,1772565044891,-4044.3,0.00010958,2]
[407601448,1772565044902,-1478.63,0.00010958,2]
[407601449,1772565044913,-537.64,0.00010958,2]
[407601450,1772565044923,-500.0,0.00010958,2]
[407601451,1772565044934,-2868.11,0.00010958,2]
[407601452,1772565044944,-4844.74,0.00010958,2]
[407601453,1772565044955,-729.96,0.00010958,2]
[407601454,1772565044966,-500.0,0.00010958,2]
[407601455,1772565044976,-9189.19,0.00010958,2]
[407601456,1772565044987,-1726.13,0.00010958,2]
[407601457,1772565044998,-500.0,0.00010958,2]
[407601458,1772565045011,-500.0,0.00010958,2]
[407601459,1772565045022,-500.0,0.00010958,2]
[407601460,1772565045033,-500.0,0.00010958,2]
[407601461,1772565045043,-4088.99,0.00010958,2]
[407601462,1772565045055,-1268.02,0.00010958,2]
[407601463,1772565045065,-486.94558747,0.00010958,2]
[407601464,1772565045076,-500.0,0.00010958,2]
[407601465,1772565045088,-2864.9,0.00010958,2]
[407601466,1772565045098,-500.0,0.00010958,2]
[407601467,1772565045109,-500.0,0.00010958,2]
[407601468,1772565045120,-500.0,0.00010958,2]
[407601469,1772565045132,-1279.77,0.00010958,2]
[407601470,1772565045143,-2358.41,0.00010958,2]
[407601471,1772565045153,-2387.59,0.00010958,2]
[407601472,1772565045165,-1423.56,0.00010958,2]
[407601473,1772565045175,-1340.95,0.00010958,2]
[407601474,1772565045185,-4349.4,0.00010958,2]
[407601475,1772565045196,-500.0,0.00010958,2]
[407601476,1772565045207,-514.93,0.00010958,2]
[407601477,1772565045218,-500.0,0.00010958,2]
[407601478,1772565045229,-7003.48,0.00010958,2]
[407601479,1772565045239,-500.0,0.00010958,2]
[407601480,1772565045250,-500.0,0.00010958,2]
[407601481,1772565045260,-500.0,0.00010958,2]
[407601482,1772565045271,-500.0,0.00010958,2]
[407601483,1772565045281,-500.0,0.00010958,2]
[407601484,1772565045291,-500.0,0.00010958,2]
[407601485,1772565045302,-1066.23,0.00010958,2]
[407601486,1772565045312,-1788.42,0.00010958,2]
[407601487,1772565045325,-865.86,0.00010958,2]
[407601488,1772565045336,-2143.66,0.00010958,2]
[407601489,1772565045346,-500.0,0.00010958,2]
[407601490,1772565045355,-500.0,0.00010958,2]
[407601491,1772565045367,-500.0,0.00010958,2]
[407601492,1772565045377,-826.65,0.00010958,2]
[407601493,1772565045388,-500.0,0.00010958,2]
[407601494,1772565045398,-874.96,0.00010958,2]
[407601495,1772565045409,-500.0,0.00010958,2]
[407601496,1772565045419,-500.0,0.00010958,2]
[407601497,1772565045429,-4251.51,0.00010958,2]
[407601498,1772565045439,-1258.46,0.00010958,2]
[407601499,1772565045449,-922.79,0.00010958,2]
[407601500,1772565045459,-500.0,0.00010958,2]
[407601501,1772565045470,-500.0,0.00010958,2]
[407601502,1772565045481,-16244.75,0.00010958,2]
[407601503,1772565045491,-500.0,0.00010958,2]
[407601504,1772565045502,-500.0,0.00010958,2]
[407601505,1772565045512,-500.0,0.00010958,2]
[407601506,1772565045522,-500.0,0.00010958,2]
[407601507,1772565045532,-500.0,0.00010958,2]
[407601508,1772565045542,-500.0,0.00010958,2]
[407601509,1772565045552,-539.33,0.00010958,2]
[407601510,1772565045563,-2849.34,0.00010958,2]
[407601511,1772565045572,-516.09,0.00010958,2]
[407601512,1772565045587,-500.0,0.00010958,2]
[407601513,1772565045597,-500.0,0.00010958,2]
[407601515,1772565045607,-500.0,0.00010958,2]
[407601517,1772565045618,-500.0,0.00010958,2]
[407601518,1772565045628,-500.0,0.00010958,2]
[407601519,1772565045639,-555.18,0.00010958,2]
[407601520,1772565045651,-6934.68,0.00010958,2]
[407601521,1772565045661,-5036.48,0.00010958,2]
[407601522,1772565045672,-500.0,0.00010958,2]
[407601523,1772565045683,-500.0,0.00010958,2]
[407601524,1772565045694,-500.0,0.00010958,2]
[407601525,1772565045704,-4034.17,0.00010958,2]
[407601526,1772565045715,-1095.17,0.00010958,2]
[407601527,1772565045726,-4106.68,0.00010958,2]
[407601528,1772565045738,-500.0,0.00010958,2]
[407601529,1772565045750,-500.0,0.00010958,2]
[407601530,1772565045762,-500.0,0.00010958,2]
[407601531,1772565045773,-500.0,0.00010958,2]
[407601532,1772565045783,-500.0,0.00010958,2]
[407601533,1772565045794,-515.72,0.00010958,2]
[407601534,1772565045804,-500.0,0.00010958,2]
[407601535,1772565045814,-500.0,0.00010958,2]
[407601536,1772565045825,-807.58,0.00010958,2]
[407601537,1772565045835,-500.0,0.00010958,2]
[407601538,1772565045845,-1478.9,0.00010958,2]
[407601539,1772565045856,-1208.96,0.00010958,2]